bitfinex-derivatives/quotes_BNBF0:USTF0_20250316
["timestamp","ask_amount","ask_price","bid_price","bid_amount"]
[1742131503402,0.33285623,600.86,599.8,1.42442883]
[1742131503603,0.33285623,600.86,599.81,1.42487177]
[1742131503803,0.33285623,600.86,599.82,1.42487177]
[1742131504004,0.33285623,600.86,599.83,1.42487177]
[1742131504205,0.33285623,600.86,599.84,2.62722832]
[1742131504404,0.33285623,600.86,599.85,1.42487177]
[1742131504607,0.33285623,600.86,599.86,1.42487177]
[1742131504797,0.7,600.85,599.87,1.42487177]
[1742131505001,0.33287285,600.83,599.88,1.42487177]
[1742131505201,0.33287285,600.83,599.89,2.62722832]
[1742131505503,0.33287285,600.83,599.9,1.42487177]
[1742131505701,0.33287285,600.83,599.91,2.62929536]
[1742131505906,0.33287285,600.83,599.92,1.42693881]
[1742131506205,0.33287285,600.83,599.93,1.42739419]
[1742131506404,0.33287285,600.83,599.94,1.04224383]
[1742131506603,0.33287285,600.83,599.95,2.24460038]
[1742131506804,0.33287285,600.83,599.96,1.04224383]
[1742131507405,0.33287285,600.83,599.37,0.29000121]
[1742131507705,0.33287285,600.83,599.38,2.9394309]
[1742131507900,0.33287285,600.83,599.39,1.7339406]
[1742131508107,0.33287285,600.83,599.4,3.2730979]
[1742131508302,0.33287285,600.83,599.41,2.06760203]
[1742131508506,0.33287285,600.83,599.42,2.06759646]
[1742131508806,0.33287285,600.83,599.43,3.2730812]
[1742131509007,0.33287285,600.83,599.44,1.7339406]
[1742131509207,0.33287285,600.83,599.45,1.7339406]
[1742131509501,0.33287285,600.83,599.46,2.9394309]
[1742131509701,0.33287285,600.83,599.47,1.7339406]
[1742131509906,0.33287285,600.83,599.48,1.7339406]
[1742131510101,0.33287285,600.83,599.49,1.7339406]
[1742131510304,0.33287285,600.83,599.5,1.7339406]
[1742131510603,0.33287285,600.83,599.51,1.7339406]
[1742131510908,0.33287285,600.83,599.52,2.63323748]
[1742131511107,0.33287285,600.83,599.53,1.42774718]
[1742131511306,0.33287285,600.83,599.54,1.42774718]
[1742131511506,0.33287285,600.83,599.55,1.42774718]
[1742131511808,0.33287285,600.83,599.56,1.42753841]
[1742131512002,0.33287285,600.83,599.57,1.42753841]
[1742131512203,0.33287285,600.83,599.58,1.42753841]
[1742131512407,0.33287285,600.83,599.57,1.2054903]
[1742131512408,0.33287285,600.83,599.59,1.42753841]
[1742131512608,0.33287285,600.83,599.6,1.42753841]
[1742131512809,0.33287285,600.83,599.61,2.63302871]
[1742131513104,0.33287285,600.83,599.62,1.42753841]
[1742131513410,0.33287285,600.83,599.63,1.42753841]
[1742131513610,0.33287285,600.83,599.64,1.42753841]
[1742131513803,0.33287285,600.83,599.65,1.42753841]
[1742131514008,0.33287285,600.83,599.66,1.73372324]
[1742131514303,0.33287285,600.83,599.67,1.42753841]
[1742131514610,0.33287285,600.83,599.68,1.42753841]
[1742131514909,0.33287285,600.83,599.69,1.42753841]
[1742131515110,0.33287285,600.83,599.7,1.42753841]
[1742131515304,0.33287285,600.83,599.71,1.42753841]
[1742131515506,0.33287285,600.83,599.72,1.42753841]
[1742131515708,0.33287285,600.83,599.73,1.42753841]
[1742131515907,0.33287285,600.83,599.74,1.42753841]
[1742131516109,0.33287285,600.83,599.75,2.24787656]
[1742131516310,0.33287285,600.83,599.75,1.2054903]
[1742131517005,0.33287285,600.83,599.41,1.2054903]
[1742131517204,0.33287285,600.83,599.42,1.42895352]
[1742131517410,0.33287285,600.83,599.43,1.73528004]
[1742131517610,0.33287285,600.83,599.44,0.69187543]
[1742131517805,0.33287285,600.83,599.45,1.73490034]
[1742131518112,0.33287285,600.83,599.46,1.73490034]
[1742131518307,0.33287285,600.83,599.47,1.73490034]
[1742131518512,0.33287285,600.83,599.48,1.42857382]
[1742131518810,2.5233244,600.82,599.49,1.42857382]
[1742131519013,2.5233244,600.82,599.5,1.42857382]
[1742131519213,2.5233244,600.82,599.51,1.42857382]
[1742131519513,0.33288948,600.8,599.52,1.42857382]
[1742131519812,0.33288948,600.8,599.53,1.42857382]
[1742131520010,0.33288948,600.8,599.54,1.04302491]
[1742131520211,0.33288948,600.8,599.55,1.04302491]
[1742131520407,0.33288948,600.8,599.4,0.887]
[1742131520712,0.7,600.79,599.41,1.42759277]
[1742131520910,0.3329061,600.77,599.42,1.42759277]
[1742131521114,0.3329061,600.77,599.43,1.42759277]
[1742131521309,0.3329061,600.77,599.44,1.42740956]
[1742131521511,0.3329061,600.77,599.45,2.24795822]
[1742131521712,0.3329061,600.77,599.46,1.04188082]
[1742131521913,0.3329061,600.77,599.47,1.04188082]
[1742131522109,0.3329061,600.77,599.4,0.887]
[1742131522314,0.3329061,600.77,599.41,1.42682865]
[1742131522511,0.3329061,600.77,599.4,0.887]
[1742131523313,0.3329061,600.77,599.41,1.4260861]
[1742131523512,0.3329061,600.77,599.42,2.62948165]
[1742131523717,0.3329061,600.77,599.43,1.42501086]
[1742131523917,0.3329061,600.77,599.44,2.62840641]
[1742131524117,0.3329061,600.77,599.45,1.42501086]
[1742131524313,0.3329061,600.77,599.46,1.42501086]
[1742131524518,0.3329061,600.77,599.47,1.42501086]
[1742131524719,0.3329061,600.77,599.48,1.42501086]
[1742131524920,0.3329061,600.77,599.49,1.42501086]
[1742131525119,0.3329061,600.77,599.5,1.04051588]
[1742131525318,0.3329061,600.77,599.51,1.04051588]
[1742131525518,0.3329061,600.77,599.52,1.03991583]
[1742131525718,0.3329061,600.77,599.53,1.42389261]
[1742131526020,0.3329061,600.77,599.54,1.42389261]
[1742131526220,0.3329061,600.77,599.55,1.42389261]
[1742131526417,0.3329061,600.77,599.56,1.42389261]
[1742131526617,0.3329061,600.77,599.57,1.42389261]
[1742131526818,0.3329061,600.77,599.58,1.42389261]
[1742131527018,0.3329061,600.77,599.59,1.73012635]
[1742131527220,0.3329061,600.77,599.6,1.73012635]
[1742131527419,0.3329061,600.77,599.61,1.73012635]
[1742131527619,0.3329061,600.77,599.62,1.73012635]
[1742131527814,0.3329061,600.77,599.63,1.42389261]
[1742131528123,0.3329061,600.77,599.64,2.9335219]
[1742131528420,0.3329061,600.77,599.65,2.9335219]
[1742131528614,0.3329061,600.77,599.66,1.73012635]
[1742131528816,0.3329061,600.77,599.67,1.42389261]
[1742131529018,0.3329061,600.77,599.68,1.73012635]
[1742131529215,0.3329061,600.77,599.69,1.42389261]
[1742131529414,0.3329061,600.77,599.7,1.42389261]
[1742131529620,0.3329061,600.77,599.71,1.42389261]
[1742131529821,0.3329061,600.77,599.72,1.7300656]
[1742131530017,0.3329061,600.77,599.73,1.7300656]
[1742131530217,0.3329061,600.77,599.74,1.7300656]
[1742131530414,0.3329061,600.77,599.75,1.42389261]
[1742131530615,0.3329061,600.77,599.76,2.93340913]
[1742131530819,0.3329061,600.77,599.77,1.73001358]
[1742131531020,0.3329061,600.77,599.78,2.93340913]
[1742131531219,0.3329061,600.77,599.79,1.73001358]
[1742131531420,0.3329061,600.77,599.8,1.73001358]
[1742131531620,0.3329061,600.77,599.81,1.73001358]
[1742131531817,0.3329061,600.77,599.82,1.73001358]
[1742131532016,0.3329061,600.77,599.83,2.93340913]
[1742131532214,0.3329061,600.77,599.84,1.73001358]
[1742131532417,0.3329061,600.77,599.85,2.93340913]
[1742131532617,0.3329061,600.77,599.86,1.73001358]
[1742131532819,0.3329061,600.77,599.87,1.73001358]
[1742131533015,0.3329061,600.77,599.88,1.42389261]
[1742131533215,0.3329061,600.77,599.89,1.42389261]
[1742131533419,0.3329061,600.77,599.9,2.62728816]
[1742131533619,0.3329061,600.77,599.91,1.42389261]
[1742131533923,0.3329061,600.77,599.92,1.42389261]
[1742131534124,0.3329061,600.77,599.93,1.42389261]
[1742131534323,0.3329061,600.77,599.94,1.039693]
[1742131534521,0.3329061,600.77,599.95,1.03883562]
[1742131534722,0.3329061,600.77,599.93,1.20339555]
[1742131535018,0.3329061,600.77,599.4,0.887]
[1742131535225,0.3329061,600.77,599.41,2.06248154]
[1742131535414,0.3329061,600.77,599.42,3.26399618]
[1742131535619,0.3329061,600.77,599.43,2.06247041]
[1742131535823,0.3329061,600.77,599.44,1.72882011]
[1742131536123,0.3329061,600.77,599.45,2.93131687]
[1742131536317,0.3329061,600.77,599.46,1.7298194]
[1742131536521,0.3329061,600.77,599.47,1.7298194]
[1742131536717,0.3329061,600.77,599.48,1.42367554]
[1742131536924,0.3329061,600.77,599.49,1.72991832]
[1742131537222,0.3329061,600.77,599.5,2.93143853]
[1742131537416,0.3329061,600.77,599.51,1.42367554]
[1742131537617,0.3329061,600.77,599.52,2.93143853]
[1742131537821,0.3329061,600.77,599.53,1.72991832]
[1742131538025,0.3329061,600.77,599.54,1.72991832]
[1742131538221,0.3329061,600.77,599.55,1.72991832]
[1742131538423,0.3329061,600.77,599.56,1.72991832]
[1742131538623,0.3329061,600.77,599.57,1.72991832]
[1742131538819,0.3329061,600.77,599.58,1.72991832]
[1742131539017,0.3329061,600.77,599.59,1.72991832]
[1742131539223,0.3329061,600.77,599.6,1.42367554]
[1742131539527,0.3329061,600.77,599.61,1.42367554]
[1742131539720,0.3329061,600.77,599.62,1.42367554]
[1742131539920,0.3329061,600.77,599.63,1.42367554]
[1742131540123,0.3329061,600.77,599.64,1.42367554]
[1742131540318,0.3329061,600.77,599.65,1.42367554]
[1742131540624,0.3329061,600.77,599.66,2.62519575]
[1742131540820,0.3329061,600.77,599.67,1.03958317]
[1742131541220,0.3329061,600.77,599.68,1.20152021]
[1742131541417,0.3329061,600.77,599.69,1.04046179]
[1742131541621,0.3329061,600.77,599.7,1.4248935]
[1742131541823,0.3329061,600.77,599.71,1.04046179]
[1742131542022,0.3329061,600.77,599.72,1.42491853]
[1742131542221,0.3329061,600.77,599.73,1.42491853]
[1742131542423,0.3329061,600.77,599.74,1.42491853]
[1742131542617,0.3329061,600.77,599.75,1.42491853]
[1742131542818,0.3329061,600.77,599.76,1.42491853]
[1742131543024,0.3329061,600.77,599.77,1.04046179]
[1742131543223,0.3329061,600.77,599.78,2.241982]
[1742131543520,0.3329061,600.77,599.79,2.241982]
[1742131543716,0.3329061,600.77,599.79,1.20152021]
[1742131544024,0.3329061,600.77,599.8,1.04025605]
[1742131544220,0.3329061,600.77,599.44,1.20152021]
[1742131544419,0.3329061,600.77,599.45,1.73082156]
[1742131544724,0.3329061,600.77,599.46,2.93234177]
[1742131544924,0.3329061,600.77,599.47,1.73082156]
[1742131545124,0.3329061,600.77,599.48,2.93234177]
[1742131545319,0.3329061,600.77,599.49,1.73082156]
[1742131545524,0.3329061,600.77,599.5,1.73082156]
[1742131545719,0.3329061,600.77,599.51,1.73082156]
[1742131545918,0.3329061,600.77,599.52,1.73086712]
[1742131546122,0.699,600.76,599.53,2.93238733]
[1742131546319,0.33291718,600.75,599.54,1.73086712]
[1742131546625,0.33291718,600.75,599.55,1.73086712]
[1742131546825,0.33291718,600.75,599.56,1.73086712]
[1742131547024,0.33291718,600.75,599.57,1.73086712]
[1742131547224,0.33291718,600.75,599.58,1.73086712]
[1742131547424,0.33291718,600.75,599.59,1.4246403]
[1742131547727,0.33291718,600.75,599.6,2.62616051]
[1742131547925,0.33291718,600.75,599.61,1.4246403]
[1742131548125,0.33291718,600.75,599.62,1.4246403]
[1742131548326,0.33291718,600.75,599.63,1.4246403]
[1742131548526,0.33291718,600.75,599.64,1.4246403]
[1742131548726,0.33291718,600.75,599.65,1.4246403]
[1742131548922,0.33291718,600.75,599.66,1.4246403]
[1742131549130,0.33291718,600.75,599.67,1.4246403]
[1742131549323,0.33291718,600.75,599.68,2.62616051]
[1742131549525,0.33291718,600.75,599.69,1.4246403]
[1742131549821,0.33291718,600.75,599.7,2.62616051]
[1742131550021,0.33291718,600.75,599.71,1.4246403]
[1742131550221,0.33291718,600.75,599.72,1.4246403]
[1742131550530,0.33291718,600.75,599.73,1.4246403]
[1742131550827,0.33291718,600.75,599.74,2.62616051]
[1742131551022,0.33291718,600.75,599.75,1.4246403]
[1742131551229,0.33291718,600.75,599.76,1.4246403]
[1742131551425,0.33291718,600.75,599.77,1.73075618]
[1742131551623,0.33291718,600.75,599.78,1.73075618]
[1742131551825,0.33291718,600.75,599.79,1.4246403]
[1742131552022,0.33291718,600.75,599.78,1.20152021]
[1742131552023,0.33291718,600.75,599.8,1.4246403]
[1742131552227,0.33291718,600.75,599.81,1.4246403]
[1742131552422,0.33291718,600.75,599.82,2.62616051]
[1742131552727,0.33291718,600.75,599.83,1.4246403]
[1742131552927,0.33291718,600.75,599.84,1.4246403]
[1742131553129,0.33291718,600.75,599.85,1.4246403]
[1742131553428,0.33291718,600.75,599.86,1.4246403]
[1742131553629,0.33291718,600.75,599.87,1.73074168]
[1742131553929,0.33291718,600.75,599.88,1.4246403]
[1742131554228,0.33291718,600.75,599.89,2.62475356]
[1742131554431,0.33291718,600.75,599.9,1.42323335]
[1742131554727,0.33291718,600.75,599.91,1.42323335]
[1742131554923,0.33291718,600.75,599.65,1.165]
[1742131555129,0.33291718,600.75,599.66,1.42381187]
[1742131555329,0.33291718,600.75,599.67,1.42381187]
[1742131555525,0.33291718,600.75,599.68,1.42381187]
[1742131555726,0.33291718,600.75,599.69,2.6258818]
[1742131555923,0.33291718,600.75,599.7,1.42381187]
[1742131556128,0.33291718,600.75,599.71,1.42381187]
[1742131556329,0.33291718,600.75,599.72,1.42381187]
[1742131556629,0.33291718,600.75,599.69,1.20206993]
[1742131556930,0.33291718,600.75,599.7,2.62593306]
[1742131557130,0.33291718,600.75,599.71,1.42386313]
[1742131557331,0.33291718,600.75,599.72,1.42386313]
[1742131557631,0.33291718,600.75,599.73,1.4238279]
[1742131557830,0.33291718,600.75,599.74,1.03969378]
[1742131558030,0.33291718,600.75,599.75,1.03969378]
[1742131558230,0.33291718,600.75,599.74,1.20206993]
[1742131558433,0.33291718,600.75,599.75,1.03963331]
[1742131558627,0.33291718,600.75,599.74,1.20206993]
[1742131558828,0.33291718,600.75,599.76,1.20206993]
[1742131559434,0.33291718,600.75,599.66,1.20206993]
[1742131559732,0.33291718,600.75,599.67,1.42377353]
[1742131559928,0.33291718,600.75,599.68,1.42377353]
[1742131560233,0.33291718,600.75,599.69,1.42377353]
[1742131560434,0.33291718,600.75,599.7,2.62584346]
[1742131560634,0.33291718,600.75,599.71,1.42377353]
[1742131560933,0.33291718,600.75,599.72,2.62584346]
[1742131561135,0.33291718,600.75,599.73,1.03963817]
[1742131561535,0.33291718,600.75,599.74,1.20206993]
[1742131561834,0.33291718,600.75,599.75,1.42374836]
[1742131562036,0.33291718,600.75,599.76,1.42375626]
[1742131562228,0.33291718,600.75,599.77,2.2417081]
[1742131562431,0.33291718,600.75,599.78,1.039752]
[1742131562632,0.33291718,600.75,599.79,1.42396062]
[1742131562832,0.33291718,600.75,599.8,1.42388171]
[1742131563033,0.33291718,600.75,599.81,1.42388171]
[1742131563231,0.33291718,600.75,599.82,1.42388171]
[1742131563428,0.33291718,600.75,599.83,1.03967113]
[1742131563633,0.33291718,600.75,599.84,1.03967113]
[1742131563830,0.33291718,600.75,599.85,1.03967113]
[1742131564035,0.33291718,600.75,599.85,1.20206993]
[1742131564433,0.33291718,600.75,599.66,1.20206993]
[1742131564634,0.33291718,600.75,599.67,1.4238229]
[1742131564931,0.33291718,600.75,599.68,2.62589283]
[1742131565136,0.33291718,600.75,599.69,1.4238229]
[1742131565337,0.33291718,600.75,599.7,1.4238229]
[1742131565636,0.33291718,600.75,599.71,1.42387419]
[1742131565838,0.33291718,600.75,599.72,2.62594412]
[1742131566031,0.33291718,600.75,599.73,1.42387419]
[1742131566238,0.33291718,600.75,599.74,2.62594412]
[1742131566438,0.33291718,600.75,599.75,1.42387419]
[1742131566637,0.33291718,600.75,599.76,1.42387419]
[1742131566937,0.33291718,600.75,599.77,2.62594412]
[1742131567134,0.33291718,600.75,599.78,1.03971813]
[1742131567337,0.33291718,600.75,599.77,1.20206993]
[1742131567536,0.33291718,600.75,599.65,1.165]
[1742131567737,0.33291718,600.75,599.66,1.42407589]
[1742131567938,0.33291718,600.75,599.67,1.42407589]
[1742131568134,0.33291718,600.75,599.68,1.42407589]
[1742131568340,0.33291718,600.75,599.69,1.42407589]
[1742131568534,0.33291718,600.75,599.7,1.73017699]
[1742131568737,0.33291718,600.75,599.71,2.62635169]
[1742131568938,0.33291718,600.75,599.72,1.42407589]
[1742131569138,0.33291718,600.75,599.73,1.42407589]
[1742131569334,0.698,600.74,599.74,1.73018425]
[1742131569541,0.698,600.74,599.75,1.42330702]
[1742131569741,0.698,600.74,599.76,1.42330702]
[1742131569942,0.698,600.74,599.77,1.42330702]
[1742131570143,0.698,600.74,599.78,1.42330702]
[1742131570443,0.698,600.74,599.79,2.62558282]
[1742131570639,0.698,600.74,599.8,1.42330702]
[1742131570839,0.698,600.74,599.81,1.42330702]
[1742131571036,0.698,600.74,599.82,1.42330702]
[1742131571240,0.698,600.74,599.83,1.42330702]
[1742131571442,0.698,600.74,599.81,1.2022758]
[1742131571642,0.698,600.74,599.84,1.2022758]
[1742131571843,0.698,600.74,599.85,1.4226793]
[1742131572045,0.698,600.74,599.86,1.4226793]
[1742131572242,0.698,600.74,599.87,1.4226793]
[1742131572440,0.698,600.74,599.88,1.4226793]
[1742131572639,0.698,600.74,599.89,2.6249551]
[1742131572840,0.698,600.74,599.9,1.4226793]
[1742131573141,0.698,600.74,599.91,1.4226793]
[1742131573345,0.698,600.74,599.92,2.6249551]
[1742131573540,0.698,600.74,599.93,1.42249881]
[1742131573744,0.698,600.74,599.94,1.42249881]
[1742131574047,0.698,600.74,599.95,1.42249881]
[1742131574244,0.698,600.74,599.96,1.4224527]
[1742131574439,0.698,600.74,599.97,0.38356325]
[1742131574639,0.698,600.74,599.98,1.4217284]
[1742131574844,0.698,600.74,599.99,1.4217284]
[1742131575041,0.698,600.74,600.0,1.4217284]
[1742131575239,0.698,600.74,600.01,2.6240042]
[1742131575446,0.698,600.74,600.02,1.4217284]
[1742131575648,0.698,600.74,600.03,1.03787826]
[1742131575849,0.698,600.74,600.04,1.42126378]
[1742131576049,0.698,600.74,600.05,1.03787826]
[1742131576248,0.698,600.74,600.03,1.2022758]
[1742131576443,0.698,600.74,600.04,2.2401492]
[1742131576648,0.698,600.74,600.04,1.2022758]
[1742131576845,0.698,600.74,600.05,1.03792835]
[1742131577049,0.698,600.74,599.88,0.79]
[1742131577252,0.698,600.74,599.89,2.6214448]
[1742131577452,0.698,600.74,599.9,1.72749525]
[1742131577650,0.698,600.74,599.91,1.72743695]
[1742131577850,0.698,600.74,599.92,1.72743695]
[1742131578045,0.698,600.74,599.93,1.42135149]
[1742131578244,0.698,600.74,599.94,1.42135149]
[1742131578449,0.698,600.74,599.95,1.42135149]
[1742131578647,0.698,600.74,599.96,2.6213865]
[1742131578848,0.698,600.74,599.97,1.42135149]
[1742131579046,0.698,600.74,599.98,2.6213865]
[1742131579245,0.698,600.74,599.99,1.42135149]
[1742131579446,0.698,600.74,600.0,1.42135149]
[1742131579648,0.698,600.74,600.01,1.42135149]
[1742131579852,0.698,600.74,600.02,1.42135149]
[1742131580046,0.698,600.74,600.03,2.23800236]
[1742131580245,0.698,600.74,600.04,1.03796735]
[1742131580449,0.698,600.74,600.05,1.20003501]
[1742131581151,0.698,600.74,599.89,1.20003501]
[1742131581347,0.698,600.74,599.9,1.42239812]
[1742131581651,0.698,600.74,599.91,1.72896214]
[1742131581846,0.698,600.74,599.92,1.72896214]
[1742131582046,0.698,600.74,599.93,2.92899715]
[1742131582247,0.698,600.74,599.94,1.42287748]
[1742131582451,0.698,600.74,599.95,1.42287748]
[1742131582654,0.698,600.74,599.96,1.42287748]
[1742131582850,0.698,600.74,599.97,1.42287748]
[1742131583050,0.698,600.74,599.98,2.62291249]
[1742131583247,0.698,600.74,599.99,1.42287748]
[1742131583453,0.698,600.74,600.0,1.42287748]
[1742131583650,0.698,600.74,600.01,2.62321546]
[1742131583947,0.698,600.74,600.02,1.42318045]
[1742131584151,0.698,600.74,600.03,1.42318045]
[1742131584352,0.698,600.74,600.04,1.42318045]
[1742131584553,0.698,600.74,600.05,2.62321546]
[1742131584747,0.698,600.74,600.06,1.42318045]
[1742131584947,0.698,600.74,600.07,1.42318045]
[1742131585150,0.698,600.74,600.08,1.42318045]
[1742131585447,0.698,600.74,600.09,1.42318045]
[1742131585747,0.698,600.74,600.1,1.42333641]
[1742131585949,0.698,600.74,600.11,1.42333641]
[1742131586150,0.698,600.74,600.12,1.42333641]
[1742131586447,0.698,600.74,600.13,2.62337142]
[1742131586653,0.698,600.74,600.14,1.42333641]
[1742131586852,0.698,600.74,600.15,1.42333641]
[1742131587052,0.698,600.74,600.16,1.42333641]
[1742131587246,0.698,600.74,600.17,1.42333641]
[1742131587450,0.698,600.74,600.18,1.03904552]
[1742131587651,0.698,600.74,600.19,1.03904552]
[1742131587847,0.698,600.74,600.14,1.20003501]
[1742131588051,0.698,600.74,600.15,1.42449902]
[1742131588252,0.698,600.74,600.16,1.04023416]
[1742131588454,0.698,600.74,600.17,1.04023416]
[1742131588751,0.698,600.74,599.88,0.79]
[1742131588947,0.698,600.74,599.89,1.73040953]
[1742131589146,0.698,600.74,599.9,1.42437041]
[1742131589350,0.698,600.74,599.91,1.42437041]
[1742131589550,0.698,600.74,599.92,1.42437041]
[1742131589849,0.698,600.74,599.93,1.42437041]
[1742131590049,0.698,600.74,599.94,1.42437041]
[1742131590250,0.698,600.74,599.95,1.42437041]
[1742131590451,0.698,600.74,599.96,1.42437041]
[1742131590651,0.698,600.74,599.97,1.42437041]
[1742131590852,0.698,600.74,599.98,1.42437041]
[1742131591151,0.698,600.74,599.99,1.42437041]
[1742131591348,0.698,600.74,600.0,1.42437041]
[1742131591548,0.698,600.74,600.01,1.42437041]
[1742131591751,0.698,600.74,600.02,1.42437041]
[1742131591951,0.698,600.74,600.03,1.42437041]
[1742131592148,0.698,600.74,600.04,2.62693844]
[1742131592457,0.698,600.74,600.05,1.42437041]
[1742131592658,0.698,600.74,600.06,1.42437041]
[1742131592858,0.698,600.74,600.07,1.42437041]
[1742131593055,0.698,600.74,600.08,2.62693844]
[1742131593255,0.698,600.74,600.09,1.42411303]
[1742131593455,0.698,600.74,600.1,1.04013139]
[1742131593756,0.698,600.74,600.11,1.04013139]
[1742131593960,0.698,600.74,600.12,1.03950726]
[1742131594257,0.698,600.74,600.13,1.20256803]
[1742131594561,0.33291718,600.75,600.13,1.20256803]
[1742131594757,0.33291718,600.75,599.88,0.79]
[1742131594955,0.33291718,600.75,599.89,1.42335986]
[1742131595258,0.33291718,600.75,599.9,2.62511004]
[1742131595454,0.33291718,600.75,599.91,1.42335986]
[1742131595660,0.33291718,600.75,599.92,1.42335986]
[1742131595859,0.33291718,600.75,599.93,1.42335986]
[1742131596052,0.33291718,600.75,599.94,1.42335986]
[1742131596255,0.33291718,600.75,599.95,1.42335986]
[1742131596457,0.33291718,600.75,599.93,1.20175018]
[1742131596664,0.33291718,600.75,599.96,0.38389321]
[1742131596857,0.33291718,600.75,599.93,1.20175018]
[1742131597458,0.33291718,600.75,599.94,1.03929063]
[1742131597654,0.33291718,600.75,599.95,1.42318716]
[1742131598156,0.33291718,600.75,599.96,0.38389653]
[1742131598355,0.33291718,600.75,599.96,1.0393134]
[1742131598555,0.698,600.74,599.97,1.42324936]
[1742131598760,0.698,600.74,599.98,1.42324936]
[1742131598961,0.698,600.74,599.99,1.42324936]
[1742131599160,0.698,600.74,600.0,2.62499954]
[1742131599356,0.698,600.74,600.01,1.42324936]
[1742131599556,0.698,600.74,600.02,1.42324936]
[1742131599757,0.698,600.74,600.03,1.42324936]
[1742131599954,0.698,600.74,600.04,1.42324936]
[1742131600157,0.698,600.74,600.05,1.42324845]
[1742131600362,0.698,600.74,600.06,1.42324845]
[1742131600562,0.698,600.74,600.07,1.42324845]
[1742131600863,0.698,600.74,600.08,1.42324845]
[1742131601058,0.698,600.74,600.09,1.42324845]
[1742131601261,0.698,600.74,600.1,1.42324845]
[1742131601564,0.698,600.74,600.11,1.42324845]
[1742131601862,0.698,600.74,600.12,1.42324845]
[1742131602064,0.698,600.74,600.13,1.42324845]
[1742131602266,0.698,600.74,600.14,1.42336708]
[1742131602565,0.698,600.74,600.15,1.03932995]
[1742131602765,0.698,600.74,600.16,1.58574974]
[1742131602965,0.698,600.74,600.17,1.03932995]
[1742131603363,0.698,600.74,600.18,2.6253759]
[1742131603566,0.698,600.74,600.19,1.03964114]
[1742131603762,0.698,600.74,600.2,2.24139132]
[1742131603961,0.698,600.74,600.21,1.03964114]
[1742131604168,0.698,600.74,599.88,0.79]
[1742131604461,0.698,600.74,599.89,1.42356462]
[1742131604661,0.698,600.74,599.9,1.42356462]
[1742131604865,0.698,600.74,599.91,1.72958299]
[1742131605059,0.698,600.74,599.88,0.79]
[1742131605060,0.698,600.74,599.92,2.93156158]
[1742131605262,0.698,600.74,599.93,1.72958299]
[1742131605464,0.698,600.74,599.94,1.72958299]
[1742131605663,0.698,600.74,599.95,2.93156158]
[1742131605863,0.698,600.74,599.96,1.72958299]
[1742131606067,0.698,600.74,599.97,1.72958299]
[1742131606269,0.698,600.74,599.98,1.72959111]
[1742131606466,0.698,600.74,599.99,1.72959111]
[1742131606770,0.698,600.74,600.0,1.72959111]
[1742131606971,0.698,600.74,600.01,1.72959111]
[1742131607165,0.698,600.74,600.02,1.72959111]
[1742131607364,0.698,600.74,600.03,1.72959111]
[1742131607563,0.698,600.74,600.04,1.72959111]
[1742131607765,0.698,600.74,600.05,2.9315697]
[1742131607964,0.698,600.74,600.06,1.42356462]
[1742131608163,0.698,600.74,600.07,1.42356462]
[1742131608366,0.698,600.74,600.08,2.62554321]
[1742131608570,0.698,600.74,600.09,1.42356462]
[1742131608770,0.698,600.74,600.1,1.42356462]
[1742131608971,0.698,600.74,600.11,1.42356462]
[1742131609171,0.698,600.74,600.12,1.42356462]
[1742131609470,0.698,600.74,600.13,2.62554321]
[1742131609672,0.698,600.74,600.14,1.42356462]
[1742131609872,0.698,600.74,600.15,1.42372928]
[1742131610076,0.698,600.74,600.16,1.03957266]
[1742131610277,0.698,600.74,600.17,1.03996595]
[1742131610478,0.698,600.74,600.16,1.20197859]
[1742131610678,0.698,600.74,600.17,1.03997575]
[1742131610977,0.698,600.74,599.89,1.20197859]
[1742131611178,0.698,600.74,599.9,1.73018131]
[1742131611378,0.698,600.74,599.91,1.73018131]
[1742131611575,0.698,600.74,599.92,1.73018131]
[1742131611778,0.698,600.74,599.93,1.73018131]
[1742131612078,0.698,600.74,599.94,2.9321599]
[1742131612379,0.698,600.74,599.95,1.4241651]
[1742131612572,0.698,600.74,599.96,1.4241651]
[1742131612772,0.698,600.74,599.97,1.4241651]
[1742131613077,0.698,600.74,599.98,1.4241651]
[1742131613278,0.698,600.74,599.99,1.4241651]
[1742131613474,0.698,600.74,600.0,1.4241651]
[1742131613680,0.698,600.74,600.01,1.4241651]
[1742131613881,0.698,600.74,600.02,1.4241651]
[1742131614073,0.698,600.74,600.03,1.4241651]
[1742131614381,0.698,600.74,600.04,1.4241651]